Cogmind - Beta 13 @@@ ROGUE MODE // 2024.04.01 @ 04:24:52 Player: raiguard Result: Destroyed by Y-45 Defender with Heavy Assault Rifle Performance ------------- Evolutions (1) 500 Regions Visited (5) 1000 Robots Destroyed (23) 115 Value Destroyed (745) 745 Prototype IDs (1) 20 Alien Tech Used (0) 0 Bonus (506) 506 TOTAL SCORE: 2886 Bonus ------- Follower Combat Kills 306 Entered Garrisons 200 Cogmind --------- Core Integrity 0/400 Matter 202/300 Energy 280/280 System Corruption 0% Temperature Cool (46) Movement Walking (120) Location -9/Garrison Parts ------- > --- POWER (1) -------- Cooled Ion Engine > --- PROPULSION (4) --- Aluminum Leg Aluminum Leg Aluminum Leg Aluminum Leg > --- UTILITY (2) ------ Small Storage Unit Light Armor Plating > --- WEAPON (2) ------- Light Assault Rifle Improved Light Cannon > --- INVENTORY (8) ---- Cooled Ion Engine Aluminum Leg Compact Wheel Heat Sink Improved Targeting Computer ECM Suite Heavy Assault Rifle Peak State ------------ > --- POWER ------------ Cooled Ion Engine > --- PROPULSION ------- Aluminum Leg Aluminum Leg Aluminum Leg Aluminum Leg > --- UTILITY ---------- Small Storage Unit Shield Generator > --- WEAPON ----------- Shotgun Improved Light Cannon > --- INVENTORY -------- Light Ion Engine Cooled Ion Engine Light Treads Light Treads Heat Sink Improved Targeting Computer ECM Suite Utility Shielding [Rating: 15] Favorites ----------- Power Light Ion Engine Engine Light Ion Engine Propulsion Aluminum Leg Treads Light Treads Leg Aluminum Leg Wheel Compact Wheel Utility Small Storage Unit Device Shield Generator Storage Small Storage Unit Processor Visual Processing Unit Protection Utility Shielding Weapon Light Assault Rifle Energy Gun EM Pulse Gun Ballistic Gun Light Assault Rifle Ballistic Cannon Improved Light Cannon Special Weapon Welding Torch Build | -11 -10 -10 -9 -9 -9 ------- Run | Yrd Mat Min Mat Sto Gar Slots Evolved 2 | . . . 2 . . Power . | . . . . . . Propulsion 2 | . . . 2 . . Utility . | . . . . . . Weapon . | . . . . . . Parts Attached 43 | 6 7 1 12 15 2 Power 8 | 1 2 . 4 1 . Engine 8 | 1 2 . 4 1 . Core . | . . . . . . Reactor . | . . . . . . Propulsion 14 | 2 1 1 3 7 . Treads 2 | . . . . 2 . Leg 11 | 2 1 1 3 4 . Wheel 1 | . . . . 1 . Hover . | . . . . . . Flight . | . . . . . . Utility 9 | 1 3 . 1 3 1 Device 2 | . . . . 2 . Storage 4 | 1 2 . . 1 . Processor 1 | . . . 1 . . Hackware . | . . . . . . Protection 2 | . 1 . . . 1 Artifact . | . . . . . . Weapon 12 | 2 1 . 4 4 1 Energy Gun 3 | 1 1 . 1 . . Energy Cannon . | . . . . . . Ballistic Gun 4 | 1 . . 1 1 1 Ballistic Cannon 4 | . . . 1 3 . Launcher . | . . . . . . Special Weapon 1 | . . . 1 . . Impact Weapon . | . . . . . . Slashing Weapon . | . . . . . . Piercing Weapon . | . . . . . . Special Melee Weapon . | . . . . . . Unidentified Prototypes 1 | . . . . 1 . Parts Lost 17 | . 1 1 14 . 1 Power 5 | . . 1 4 . . Propulsion 4 | . . . 4 . . Utility 2 | . . . 1 . 1 Weapon 6 | . 1 . 5 . . Highest Loss Streak 8 | . 1 1 8 . 1 To Critical Strikes . | . . . . . . Average Slot Usage (%) 82 | . 89 97 74 72 99 Engine 10 | . 14 11 6 10 11 Treads 1 | . . . . 4 . Leg 25 | . 28 28 27 17 44 Wheel 1 | . . . . 3 . Device 3 | . . . . 9 10 Storage 16 | . 17 28 16 10 11 Energy Gun 6 | . 14 14 4 . . Ballistic Gun 11 | . 14 14 9 9 11 Ballistic Cannon 3 | . . . 5 5 11 Naked Turns . | . . . . . . Heaviest Build 22 | 11 13 12 16 22 22 Greatest Support 40 | 20 20 20 40 40 40 Greatest Overweight (x) 5 | 2 . . 3 5 . Average Overweight (x) . | . . . . 1 . Largest Inventory Capacity 8 | 8 8 8 8 8 8 Average Capacity 7 | 7 8 8 8 7 8 Most Carried 8 | 6 8 8 8 8 8 Average Carried 7 | 4 7 7 6 6 7 Final Capacity 8 | 8 8 8 8 8 8 Final Carried 8 | 6 7 8 4 8 7 Class Distribution -------------------- 77% | Mutant 22% | Scavenger-Mutant Dominant Class ---------------- Mutant | -10/Materials Mutant | -10/Mines Mutant | -9/Materials Mutant | -9/Storage Scavenger-Mutant | -9/Garrison Resources | -11 -10 -10 -9 -9 -9 ----------- Run | Yrd Mat Min Mat Sto Gar Matter Collected 950 | 200 78 250 143 233 46 Remotely . | . . . . . . Salvage Created 767 | . 209 91 164 213 90 Parts 47 | . 12 4 10 14 7 Haulers Intercepted . | . . . . . . Recyclers Shooed . | . . . . . . Parts Field Recycled . | . . . . . . Retrieved Matter . | . . . . . . Parts Self-Destructed . | . . . . . . Prevented . | . . . . . . Kills | -11 -10 -10 -9 -9 -9 ------- Run | Yrd Mat Min Mat Sto Gar Combat Hostiles Destroyed 22 | . 4 2 7 5 4 Guns 14 | . 4 2 5 1 2 Cannons 8 | . . . 2 4 2 Classes Destroyed 4 | . 2 . 2 . . Watcher 1 | . 1 . . . . Swarmer 6 | . . . 3 . 3 Grunt 10 | . 4 2 3 1 . Sentry 6 | . . . 1 4 1 Best Kill Streak 3 | . 3 2 3 2 3 Combat Bots Only 3 | . 3 2 3 2 3 Max Kills in Single Turn 2 | . 1 2 1 1 1 Gunslinging 1 | . . 1 . . . Exploded . | . . . . . . Melee . | . . . . . . Uniques/NPCs Destroyed . | . . . . . . Combat | -11 -10 -10 -9 -9 -9 -------- Run | Yrd Mat Min Mat Sto Gar Hostile Shots Fired 271 | . 50 22 116 33 50 Missed 76 | . 22 6 25 10 13 Damage Taken 2289 | . 318 210 1194 261 306 Core 518 | . 67 45 314 45 47 Absorbed by Shields 143 | . . . . 98 45 Regen/Repaired (Parts) 123 | . . . . 123 . Core Remaining (%) 77 | 100 . 55 . . . Volleys Fired 116 | . 21 9 56 18 12 Largest 2 | . 2 2 2 2 2 Hottest 62 | . 60 60 60 62 62 Shots Fired 204 | . 42 18 86 34 24 Gun 149 | . 42 18 61 16 12 Cannon 54 | . . . 24 18 12 Launcher . | . . . . . . Special 1 | . . . 1 . . Kinetic 158 | . 21 9 70 34 24 Thermal 27 | . 2 9 16 . . Explosive . | . . . . . . Electromagnetic 19 | . 19 . . . . Robot Hit Streak 9 | . 8 8 7 9 7 Robot Miss Streak 4 | . 4 1 2 4 4 Penetration Max . | . . . . . . Secondary Targets 2 | . . 1 1 . . Max Gunslinging Chain 1 | . . 1 1 . . Shots Hit Robots 141 | . 21 15 62 27 16 Core Hits 41 | . 10 6 14 7 4 Critical Kills . | . . . . . . Critical Parts Destroyed 1 | . 1 . . . . Critical Strikes 2 | . 1 . . . 1 Destroy 1 | . 1 . . . . Blast 1 | . . . . . 1 Melee Attacks . | . . . . . . Impact . | . . . . . . Slashing . | . . . . . . Piercing . | . . . . . . Sneak Attacks . | . . . . . . Combat Hostiles . | . . . . . . Follow-up Attacks . | . . . . . . Damage Inflicted 1823 | . 242 161 701 490 229 Guns 1085 | . 242 161 395 211 76 Cannons 735 | . . . 303 279 153 Explosions . | . . . . . . Melee . | . . . . . . Ramming . | . . . . . . Kinetic 1399 | . 83 57 540 490 229 Thermal 276 | . 11 104 161 . . Explosive . | . . . . . . Electromagnetic 148 | . 148 . . . . Impact . | . . . . . . Slashing . | . . . . . . Piercing . | . . . . . . Highest Corruption . | . . . . . . Average Corruption . | . . . . . . Corruption Purged . | . . . . . . Corruption Blocked . | . . . . . . Overload Shots . | . . . . . . Overflow Damage 16 | . . . 1 3 12 Projectiles 16 | . . . 1 3 12 Explosions . | . . . . . . Melee . | . . . . . . Knockbacks 11 | . . . 10 1 . Impact . | . . . . . . Kinetic 10 | . . . 9 1 . Secondary 1 | . . . 1 . . Self-Inflicted Damage . | . . . . . . Shots . | . . . . . . Rammed . | . . . . . . Targets Rammed . | . . . . . . Kicked . | . . . . . . Crushed . | . . . . . . Highest Temperature 85 | . 58 85 60 2 37 Average Temperature 19 | . 19 41 15 1 14 Received Heat Transfer 892 | . 78 117 543 64 90 Siege Activations . | . . . . . . Robots Corrupted . | . . . . . . Combat Hostiles . | . . . . . . Parts Fried . | . . . . . . Impact Corruptions . | . . . . . . Robots Melted . | . . . . . . Combat Hostiles . | . . . . . . Parts Melted . | . . . . . . Heat Transferred 659 | . 25 225 409 . . Parts Sabotaged . | . . . . . . Parts Stolen . | . . . . . . Parts Stripped . | . . . . . . Power Chain Reactions . | . . . . . . Alert | -11 -10 -10 -9 -9 -9 ------- Run | Yrd Mat Min Mat Sto Gar Peak Influence 327 | . 197 50 111 327 307 Initial 212 | . . 7 19 . 212 Average 82 | . 57 11 57 140 261 Maximum Alert Level 1 | . . . . 1 1 Low Security (%) 84 | 100 100 100 100 62 . Level 1 15 | . . . . 37 100 Level 2 . | . . . . . . Level 3 . | . . . . . . Level 4 . | . . . . . . Level 5 . | . . . . . . High Security . | . . . . . . Max Security . | . . . . . . Squads Dispatched 7 | . 1 . 1 5 . Investigation 1 | . . . . 1 . Extermination . | . . . . . . Reinforcement 3 | . 1 . 1 1 . Assault 2 | . . . . 2 . Garrison 1 | . . . . 1 . Intercept . | . . . . . . Searches Triggered . | . . . . . . Construction Impeded . | . . . . . . Haulers Reinforced . | . . . . . . Active Scanning Responses . | . . . . . . Cargo Convoy Interrupts . | . . . . . . Stealth | -11 -10 -10 -9 -9 -9 --------- Run | Yrd Mat Min Mat Sto Gar Distress Signals . | . . . . . . Communications Jammed . | . . . . . . Distress Signals . | . . . . . . Times Spotted 51 | . 20 2 11 13 5 Peak Tracking Total 6 | . 5 2 4 6 3 Tactical Retreats 1 | . 1 . . . . Traps | -11 -10 -10 -9 -9 -9 ------- Run | Yrd Mat Min Mat Sto Gar Traps Triggered 2 | . 1 . . 1 . Indirectly . | . . . . . . Trap Hack Attempts . | . . . . . . Triggered . | . . . . . . Disarmed 1 | . . . . 1 . Reprogrammed . | . . . . . . Reused . | . . . . . . Traps Extracted . | . . . . . . Installed . | . . . . . . Triggered . | . . . . . . Machines | -11 -10 -10 -9 -9 -9 ---------- Run | Yrd Mat Min Mat Sto Gar Machines Disabled 2 | . 1 . . 1 . Max in Single Turn 1 | . 1 . . 1 . Machines Repaired . | . . . . . . Machines Dismantled . | . . . . . . Machines Sabotaged . | . . . . . . Overloaded Fab Kills . | . . . . . . Hacking | -11 -10 -10 -9 -9 -9 --------- Run | Yrd Mat Min Mat Sto Gar Machines Accessed 11 | . 3 . 3 4 1 Terminals 8 | . 3 . 2 2 1 Fabricators . | . . . . . . Repair Stations 1 | . . . . 1 . Recycling Units . | . . . . . . Scanalyzers 1 | . . . 1 . . Garrison Access 1 | . . . . 1 . Total Hacks 36 | . 9 . 11 15 1 Successful 27 | . 9 . 8 10 . Failed 9 | . . . 3 5 1 Catastrophic 2 | . . . . 1 1 Database Lockouts . | . . . . . . Manual . | . . . . . . Terminals 22 | . 9 . 6 6 1 Fabricators . | . . . . . . Repair Stations 7 | . . . . 7 . Recycling Units . | . . . . . . Scanalyzers 5 | . . . 5 . . Garrison Access 2 | . . . . 2 . Terminal Hacks 16 | . 9 . 4 3 . Record 2 | . 2 . . . . Locate Traps 4 | . 2 . 1 1 . Disarm Traps 1 | . . . . 1 . Dispatch Records 4 | . 3 . 1 . . Maintenance Status 2 | . 1 . 1 . . Transport Status 1 | . 1 . . . . Zone Layout 2 | . . . 1 1 . Fabricator Hacks . | . . . . . . Repair Station Hacks 6 | . . . . 6 . Scan Component 3 | . . . . 3 . Repair 3 | . . . . 3 . Recycling Unit Hacks . | . . . . . . Scanalyzer 4 | . . . 4 . . Insert Component 2 | . . . 2 . . Analyze 2 | . . . 2 . . Garrison Access Hacks 1 | . . . . 1 . Unlock Access 1 | . . . . 1 . Unauthorized Hacks . | . . . . . . Terminals . | . . . . . . Fabricators . | . . . . . . Repair Stations . | . . . . . . Recycling Units . | . . . . . . Scanalyzers . | . . . . . . Garrison Access . | . . . . . . Data Cores Recovered . | . . . . . . Used . | . . . . . . Hacking Detections 11 | . 3 . 3 4 1 Full Trace Events 2 | . . . 1 1 . Feedback Events . | . . . . . . Feedback Blocked . | . . . . . . Robot Schematics Acquired . | . . . . . . Robots Built . | . . . . . . Authchips . | . . . . . . Time . | . . . . . . Total Robot Build Rating . | . . . . . . Part Schematics Acquired 2 | . . . 2 . . Parts Built . | . . . . . . Authchips . | . . . . . . Time . | . . . . . . Total Part Build Rating . | . . . . . . Parts Repaired 3 | . . . . 3 . Time 84 | . . . . 84 . Parts Recycled . | . . . . . . Recycled Matter . | . . . . . . Retrieved Matter . | . . . . . . Retrieved Components . | . . . . . . Parts Scanalyzed 2 | . . . 2 . . Part Schematics Acquired 2 | . . . 2 . . Parts Damaged . | . . . . . . Bothacking | -11 -10 -10 -9 -9 -9 ------------ Run | Yrd Mat Min Mat Sto Gar Used RIF Installer . | . . . . . . Robots Hacked . | . . . . . . Non-combat . | . . . . . . Combat . | . . . . . . Robot Hacks Applied . | . . . . . . Relay Couplers Released . | . . . . . . Fabnet Peak Effective % . | . . . . . . Robots Rewired . | . . . . . . Allies Hacked . | . . . . . . Hacks Repelled . | . . . . . . Allies | -11 -10 -10 -9 -9 -9 -------- Run | Yrd Mat Min Mat Sto Gar Total Allies 2 | . . . . 2 . Largest Group 2 | . . . . 2 . Highest-Rated Group 62 | . . . . 62 . Highest-Rated Ally 31 | . . . . 31 . Total Orders . | . . . . . . Ally Attacks 58 | . . . . 58 . Total Damage 837 | . . . . 837 . Kills 12 | . . . . 12 . Allies Corrupted . | . . . . . . Allies Melted . | . . . . . . Intel | -11 -10 -10 -9 -9 -9 ------- Run | Yrd Mat Min Mat Sto Gar Robot Analysis Total . | . . . . . . Derelict Logs Recovered 1 | . . 1 . . . Drone Launches . | . . . . . . Drone Recoveries . | . . . . . . Exploration | -11 -10 -10 -9 -9 -9 ------------- Run | Yrd Mat Min Mat Sto Gar Turns Passed 2328 | 159 623 258 503 664 121 Spaces Moved 1364 | 123 441 186 238 310 66 Core 110 | 18 . . 21 71 . Treads 26 | . . . . 26 . Legs 1186 | 105 441 186 217 171 66 Wheels 42 | . . . . 42 . Hover . | . . . . . . Flight . | . . . . . . Fastest Speed 50 | 50 120 120 100 100 120 Average Speed 129 | 117 120 120 130 153 120 Slowest Speed 300 | 150 120 120 200 300 120 Overloaded Moves . | . . . . . . Propulsion Burnouts . | . . . . . . Robots Hopped . | . . . . . . Cave-ins Triggered . | . . . . . . Exploration Rate (%) 27 | 6 50 43 19 37 12 Regions Visited 5 Branch Regions 2 Pre-discovered Areas . | . . . . . . Known Exits Taken 1 | . . . . 1 . Unknown Exits Taken 4 | 1 1 1 1 . . Scrap Searched 1 | . . 1 . . . Spaces Dug . | . . . . . . Terrain Destroyed 1 | . . . . 1 . Melee . | . . . . . . Projectile 1 | . . . . 1 . AOE . | . . . . . . Terrain Rammed . | . . . . . . Walls Destroyed . | . . . . . . Machines Disabled . | . . . . . . Actions | -11 -10 -10 -9 -9 -9 --------- Run | Yrd Mat Min Mat Sto Gar Total 1743 | 134 501 205 353 464 86 Wait 171 | . 14 6 43 103 5 Move 1359 | 122 440 185 237 309 66 Hop . | . . . . . . Pick Up 30 | 6 9 2 3 10 . Fast Attach 24 | 6 2 . 4 11 1 Attach 13 | . 1 . 8 3 1 Detach 5 | . . . 1 4 . Swap 6 | . 4 1 . 1 . Drop 19 | . 10 2 1 5 1 Fire 116 | . 21 9 56 18 12 Melee . | . . . . . . Ram . | . . . . . . Kick . | . . . . . . Crush . | . . . . . . Escape Stasis . | . . . . . . Rewire . | . . . . . . Trap . | . . . . . . Miscellaneous . | . . . . . . Route ------- -11/Scrapyard -10/Materials -10/Mines -9/Materials -9/Storage -9/Garrison History --------- Turn | Location | Event 2 | -11/Scrapyard | Met Revision 17 18 | -11/Scrapyard | Discovered new exit (range 15) 160 | -11/Scrapyard | Entered Materials 313 | -10/Materials | Build established: Mutant 581 | -10/Materials | Discovered new exit (range 6) 783 | -10/Materials | Entered Mines 786 | -10/Mines | Learned Materials terminal intel 974 | -10/Mines | Discovered new exit (range 11) 1041 | -10/Mines | Entered Materials 1041 | -9/Materials | Evolved 2 slots: Propulsion x2 1042 | -9/Materials | Loaded intel: 12 terminal locations 1365 | -9/Materials | Lost 4 parts (3n1u) 1450 | -9/Materials | Discovered new exit (range 4) 1506 | -9/Materials | Core integrity fell below 50% 1544 | -9/Materials | Entered Storage 1556 | -9/Storage | Lost 8 parts (3p1n4w) 1708 | -9/Storage | Met a pair of Derelict thieves 1823 | -9/Storage | Repaired Shield Generator 1851 | -9/Storage | Repaired Lgt. Ion Engine 1878 | -9/Storage | Repaired Sml. Storage Unit 2143 | -9/Storage | Core integrity fell below 20% 2146 | -9/Storage | Garrison activated, responded to threat 2207 | -9/Storage | Identified exit to Garrison 2208 | -9/Storage | Entered Garrison 2255 | -9/Garrison | Build established: Scavenger-Mutant 2302 | -9/Garrison | Triggered checkpoint 2329 | -9/Garrison | Destroyed by Y-45 Defender with Heavy Assault Rifle Last Messages --------------- 02175_ K-01 Serf collects debris. 02207_ Connecting with Garrison Access... >>Unlock Access door unlocked. 02207_ EXIT=UNLOCKED: GARRISON LOCATION=GARRISON GOAL=ESCAPE 02246_ Destroyed Flight Unit. 02246_ S-10 Pest destroyed. 02257_ Dropped Shotgun. 02257_ Acquired Lgt. Assault Rifle. 02259_ Acquired 28 matter. 02263_ Acquired 18 matter. 02283_ Connecting with Garrison Terminal... 02311_ Shield Generator destroyed. 02315_ Slug penetrates Reinforced Barrier. 02318_ Y-45 Defender Lgt. Treads blasted off. 02318_ Y-45 Defender destroyed. 02320_ Critical hit (Burn: +37). 02321_ Slug penetrates Reinforced Barrier. Map ----- +----------------------------------------------------+ | ?????????????????????? #????????????????????????? | | ?????????????????????? #????????????????????????? | | ?????????????????????# #????????????????????????? | | ?????????????????????# #????????????????????????? | | ?????????????????????# #????????????????????????? | | ?????????????????????# #????????????????????????? | | ?????????????????????#^ #????????????????????????? | | ????????????##########^ ######### #?????????????? | | ????????????# #?????????????? | | ????????????# #?????????????? | | ????????????# ####### #######???????????????????? | | ????????????# #?????# #?????????????????????????? | | ????????????# #?????#=#?????????????????????????? | | ????????????# #?????#=#?????????????????????????? | | ????????????# #?????# ###+#?????????????????????? | | ????????????# #?????# =[ =#?????????????????????? | | ????????????# #?????##### #?????????????????????? | | ????????????# #?????????# #?????????????????????? | | ????????????# #?????????# #?????????????????????? | | ??????????### #?????????# ###???????????????????? | | ??????????# #?????????# #???????????????????? | | ??????????# #?????????# ????????????????????? | | ??????????# #?????????# ?????????????????????? | | ??????????########??###??#%#?????????????????????? | | ???????????# ####T####Y#?????????????????????? | | ???????????# @%#?????????????????????? | | ???????????# # ### ##!#?????????????????????? | | ???????????# ## ##"""""# #?????????????????????? | | ???????????##?############?#?????????????????????? | | ?????????????????????????????????????????????????? | | ?????????????????????????????????????????????????? | | ?????????????????????????????????????????????????? | | ?????????????????????????????????????????????????? | | ?????????????????????????????????????????????????? | | ?????????????????????????????????????????????????? | | ?????????????????????????????????????????????????? | | ?????????????????????????????????????????????????? | | ?????????????????????????????????????????????????? | | ?????????????????????????????????????????????????? | | ?????????????????????????????????????????????????? | | ?????????????????????????????????????????????????? | | ?????????????????????????????????????????????????? | | ?????????????????????????????????????????????????? | | ?????????????????????????????????????????????????? | | | | | | | | | | | | | +----------------------------------------------------+ Best States ------------- Heat Dissipation 28 Energy Generation 14 Energy Capacity 280 Matter Stores 400 Matter Capacity 400 Sight Range 18 Terrain Scan Density 10 Utility Shielding 33 Evasion (%) 55 Recoil Reduction 2 Item Schematics ----------------- Lgt. Ion Engine | -9/Materials | Scanalyzed Aluminum Leg | -9/Materials | Scanalyzed Robot Schematics ------------------ None Fabricated ------------ Nothing Alien Tech Used ----------------- None Achievements -------------- Troublemaker Challenges ------------ None Game ------ Seed SmallComponentSteel Manual? 0 Play Time 00:38:30 Cumulative 4.2 hours Start 2024.04.01 @ 03:42:47 End 2024.04.01 @ 04:24:52 Sessions 1 Manual Loads 0 Difficulty Rogue Special Mode None Game No. 8 Rogue 8 Adventurer 0 Explorer 0 Win Type - Total 0 Types 0/0/0/0/0/0/0/0/0 Lore% 2 Gallery% 5 Achievement% 6 Wizard Run 0 Options --------- Layout 1 ASCII 0 Keyboard 1 Movement Vi Keybinds 0 Fullscreen 1 Font 20/SmallcapsGlow Map View 56x47 Zoom Use 0% Tactical HUD 1 Map Filters NONE Filters NONE Steam 1 RUN: 85ad942d-f1bb-4b85-8736-d398abfd7792